bitfinex/quotes_BTCUSD_20250826
["timestamp","ask_amount","ask_price","bid_price","bid_amount"]
[1756212040200,0.00014281,110650.0,110640.0,0.31035546]
[1756212040402,0.00014281,110650.0,110640.0,1.11595283]
[1756212040605,0.00014281,110650.0,110640.0,0.52983546]
[1756212040828,0.00014281,110650.0,110640.0,0.30539546]
[1756212041049,0.76701029,110650.0,110640.0,0.52475546]
[1756212041270,0.76701029,110650.0,110640.0,0.50254846]
[1756212041271,0.18089292,110650.0,110640.0,0.50254846]
[1756212041736,0.76870675,110650.0,110640.0,0.32338202]
[1756212041964,0.18089292,110650.0,110640.0,0.27822846]
[1756212042416,0.76870675,110650.0,110640.0,0.09746202]
[1756212042642,0.85845558,110650.0,110640.0,0.006]
[1756212042872,1.78457295,110650.0,110640.0,0.006]
[1756212043123,1.80404431,110650.0,110640.0,0.006]
[1756212043339,0.63180957,110650.0,110640.0,0.006]
[1756212043552,0.54036428,110650.0,110640.0,0.006]
[1756212043758,1.12648165,110650.0,110640.0,0.006]
[1756212043968,1.12648165,110650.0,110640.0,0.003]
[1756212044186,0.18076644,110640.0,110630.0,0.2212]
[1756212044406,0.18078329,110630.0,110620.0,0.26214931]
[1756212044609,0.18078329,110630.0,110620.0,0.35870133]
[1756212044818,0.18078329,110630.0,110620.0,0.31771202]
[1756212045042,0.18076644,110640.0,110620.0,0.49851115]
[1756212045268,0.18076644,110640.0,110630.0,0.18384278]
[1756212045733,0.18076644,110640.0,110630.0,0.18587278]
[1756212045958,0.18176644,110640.0,110630.0,0.18591278]
[1756212046171,0.001,110640.0,110630.0,0.35967179]
[1756212046385,0.001,110640.0,110630.0,0.96323818]
[1756212046609,0.00014281,110650.0,110640.0,0.78433283]
[1756212046861,0.00014281,110650.0,110640.0,0.94837485]
[1756212047084,0.00014281,110650.0,110640.0,0.95040485]
[1756212047995,0.00014281,110650.0,110640.0,0.36428748]
[1756212048201,0.00014281,110650.0,110640.0,0.95040485]
[1756212048452,0.00014281,110650.0,110640.0,0.97756885]
[1756212049089,0.00014281,110650.0,110640.0,0.98256885]
[1756212049304,0.00014281,110650.0,110640.0,0.39645148]
[1756212049507,0.00014281,110650.0,110640.0,0.99056885]
[1756212050756,0.00014281,110650.0,110640.0,1.21136885]
[1756212050958,0.00014281,110650.0,110640.0,1.61136885]
[1756212051165,0.00014281,110650.0,110640.0,1.02525148]
[1756212051373,0.00014281,110650.0,110640.0,1.61136885]
[1756212052216,0.00014281,110650.0,110640.0,1.02525148]
[1756212052428,0.00014281,110650.0,110640.0,1.61536885]
[1756212053054,0.00014281,110650.0,110640.0,1.03525148]
[1756212053268,0.00014281,110650.0,110640.0,1.62136885]
[1756212053492,0.00014281,110650.0,110640.0,1.03525148]
[1756212053710,0.00014281,110650.0,110640.0,1.62136885]
[1756212054827,0.001,110700.0,110690.0,0.18068479]
[1756212055046,0.00147649,110700.0,110690.0,0.49404536]
[1756212055262,0.18066847,110700.0,110690.0,0.49178681]
[1756212056145,0.18066847,110700.0,110690.0,0.49278681]
[1756212056350,0.18069942,110710.0,110700.0,0.18066847]
[1756212056578,0.18253871,110710.0,110700.0,0.27213049]
[1756212056784,0.18253871,110710.0,110700.0,0.09146202]
[1756212057625,0.76865608,110710.0,110700.0,0.09146202]
[1756212057842,0.18186225,110710.0,110700.0,0.09146202]
[1756212058052,0.18355871,110710.0,110700.0,0.31086202]
[1756212058275,0.76967608,110710.0,110700.0,0.31086202]
[1756212058486,0.76797962,110710.0,110700.0,0.31086202]
[1756212058892,0.18186225,110710.0,110700.0,0.31086202]
[1756212059095,0.76797962,110710.0,110700.0,0.31086202]
[1756212059933,0.85942491,110710.0,110700.0,0.09146202]
[1756212060362,0.76797962,110710.0,110700.0,0.09146202]
[1756212060567,0.76797962,110710.0,110700.0,0.13141624]
[1756212060783,0.18186225,110710.0,110700.0,0.13141624]
[1756212061046,0.76797962,110710.0,110700.0,0.13141624]
[1756212061667,0.18186225,110710.0,110700.0,0.13141624]
[1756212061884,0.76797962,110710.0,110700.0,0.13141624]
[1756212062162,0.18066847,110700.0,110690.0,0.21924]
[1756212062381,0.7684823,110700.0,110690.0,0.31070202]
[1756212062591,0.76678584,110700.0,110690.0,0.31070202]
[1756212062813,0.76780584,110700.0,110690.0,0.31070202]
[1756212063044,0.18168847,110700.0,110690.0,0.31070202]
[1756212063275,0.76780584,110700.0,110690.0,0.31070202]
[1756212063747,0.18168847,110700.0,110690.0,0.31170202]
[1756212063959,0.18168847,110700.0,110690.0,0.31270202]
[1756212064180,0.76780584,110700.0,110690.0,0.31270202]
[1756212064396,0.18168847,110700.0,110690.0,0.31270202]
[1756212065504,0.76678584,110700.0,110690.0,0.31270202]
[1756212065710,0.18066847,110700.0,110690.0,0.31779202]
[1756212065924,0.16826189,110710.0,110690.0,0.5717738]
[1756212066129,0.16995835,110710.0,110700.0,0.09372037]
[1756212066331,0.16995835,110710.0,110700.0,0.09881037]
[1756212066539,0.16826189,110710.0,110700.0,0.09881037]
[1756212066745,0.16826189,110710.0,110700.0,0.27947884]
[1756212066950,0.16826189,110710.0,110700.0,0.09655202]
[1756212067156,0.16826189,110710.0,110700.0,0.09881037]
[1756212067387,0.16826189,110710.0,110700.0,0.09655202]
[1756212067624,0.16826189,110710.0,110700.0,0.27947884]
[1756212067853,0.16995835,110710.0,110700.0,0.09146202]
[1756212068085,0.16995835,110710.0,110700.0,0.09655202]
[1756212068311,0.16826189,110710.0,110700.0,0.09146202]
[1756212068568,0.16826189,110710.0,110700.0,0.27947884]
[1756212068791,0.16826189,110710.0,110700.0,0.09655202]
[1756212069012,0.75607572,110710.0,110700.0,0.09146202]
[1756212069232,0.75437926,110710.0,110700.0,0.09146202]
[1756212069441,0.16826189,110710.0,110700.0,0.09146202]
[1756212069862,0.75607572,110710.0,110700.0,0.09146202]
[1756212070073,0.75437926,110710.0,110700.0,0.09146202]
[1756212070725,0.16826189,110710.0,110700.0,0.09146202]
[1756212070950,0.75607572,110710.0,110700.0,0.09146202]
[1756212071172,0.75437926,110710.0,110700.0,0.09146202]
[1756212071422,0.75437926,110710.0,110680.0,0.2687]
[1756212071423,0.18068479,110690.0,110680.0,0.2687]
[1756212071644,0.76680216,110690.0,110680.0,0.57848202]
[1756212072114,0.18068479,110690.0,110680.0,0.57848202]
[1756212072355,0.18068479,110690.0,110680.0,0.58368202]
[1756212073034,0.18068479,110690.0,110680.0,0.49568314]
[1756212074631,0.18068306,110700.0,110690.0,0.18068479]
[1756212074899,0.18068306,110700.0,110690.0,0.09684057]
[1756212075104,0.18068306,110700.0,110690.0,0.09892057]
[1756212075352,0.18237952,110700.0,110690.0,0.09666202]
[1756212075570,0.76849689,110700.0,110690.0,0.09146202]
[1756212075819,0.76680043,110700.0,110690.0,0.09146202]
[1756212076029,0.18068306,110700.0,110690.0,0.31214942]
[1756212076255,0.18237952,110700.0,110690.0,0.13766463]
[1756212076474,0.18237952,110700.0,110690.0,0.31834942]
[1756212076692,0.00169646,110700.0,110690.0,0.31934942]
[1756212076918,0.17899095,110710.0,110690.0,0.31934942]
[1756212077135,0.18066847,110700.0,110690.0,0.2278874]
[1756212077324,0.76341186,110710.0,110690.0,0.4448474]
[1756212077572,0.18066847,110700.0,110690.0,0.4448474]
[1756212077787,0.17729449,110710.0,110700.0,0.00312]
[1756212077999,0.19680017,110710.0,110700.0,0.09666202]
[1756212078416,0.18776757,110710.0,110700.0,0.27733049]
[1756212078626,0.00014283,110710.0,110700.0,0.86344786]
[1756212078837,0.00014283,110710.0,110700.0,0.27733049]
[1756212079500,0.00114283,110710.0,110700.0,0.27733049]
[1756212079709,0.30936436,110720.0,110710.0,0.18065215]
[1756212079925,0.13719396,110720.0,110710.0,0.49637232]
[1756212080130,0.31782979,110720.0,110710.0,0.27731417]
[1756212080393,0.18066847,110700.0,110690.0,0.25956261]
[1756212080607,0.20017262,110700.0,110690.0,0.53393225]
[1756212080825,0.60562152,110700.0,110690.0,0.53393225]
[1756212081561,0.81879801,110700.0,110690.0,0.35324746]
[1756212081781,0.63812954,110700.0,110690.0,0.53393225]
[1756212081995,0.05201217,110700.0,110690.0,0.53393225]
[1756212082647,0.82049447,110700.0,110690.0,0.09160485]
[1756212082857,0.83505202,110700.0,110690.0,0.09160485]
[1756212083079,0.24893465,110700.0,110690.0,0.09160485]
[1756212083290,0.83505202,110700.0,110690.0,0.09160485]
[1756212083500,0.83705202,110700.0,110690.0,0.09160485]
[1756212084415,0.82081554,110700.0,110690.0,0.09160485]
[1756212084645,0.20969817,110700.0,110690.0,0.27748964]
[1756212084873,0.03452555,110700.0,110690.0,0.27748964]
[1756212085102,0.21519402,110700.0,110690.0,0.27748964]
[1756212085953,0.21519402,110700.0,110690.0,0.49260964]
[1756212086417,0.20706694,110700.0,110690.0,0.49260964]
[1756212086920,0.20706694,110700.0,110690.0,0.31192485]
[1756212087164,0.20706694,110700.0,110690.0,0.49260964]
[1756212087372,0.02639847,110700.0,110690.0,0.49260964]
[1756212087812,0.002,110700.0,110690.0,0.49260964]
[1756212088025,0.002,110700.0,110690.0,1.07872701]
[1756212088440,0.002,110700.0,110690.0,0.49260964]
[1756212088611,0.002,110700.0,110690.0,1.07872701]
[1756212088827,0.002,110700.0,110690.0,0.49260964]
[1756212089251,0.002,110700.0,110690.0,1.07872701]
[1756212089645,0.002,110700.0,110690.0,0.49260964]
[1756212089846,0.12872815,110720.0,110710.0,0.18065215]
[1756212090002,0.12872815,110720.0,110710.0,0.49449232]
[1756212090202,0.12872815,110720.0,110710.0,0.49223417]
[1756212091455,0.12972815,110720.0,110710.0,1.07835154]
[1756212091672,0.12972815,110720.0,110710.0,0.49223417]
[1756212091881,0.12472815,110720.0,110710.0,1.07835154]
[1756212092089,1e-08,110730.0,110720.0,0.19808485]
[1756212092304,1e-08,110730.0,110720.0,1.46656123]
[1756212092515,0.00022923,110750.0,110740.0,0.18060321]
[1756212092769,0.00022923,110750.0,110740.0,1.08991162]
[1756212092991,0.00022923,110750.0,110740.0,1.50411162]
[1756212093203,0.00022923,110750.0,110740.0,1.80411162]
[1756212093415,0.0175,110760.0,110750.0,0.1805869]
[1756212093660,0.0175,110760.0,110750.0,1.62805661]
[1756212093878,0.01764277,110760.0,110750.0,0.61816429]
[1756212094082,0.01764277,110760.0,110750.0,1.60428166]
[1756212094319,0.01764277,110760.0,110750.0,1.70920604]
[1756212094530,0.01764277,110760.0,110750.0,0.75924867]
[1756212094745,0.01764277,110760.0,110750.0,0.97292867]
[1756212095164,0.01764277,110760.0,110750.0,1.55904604]
[1756212095382,0.01764277,110760.0,110750.0,1.72649506]
[1756212095589,0.01764277,110760.0,110750.0,1.58149506]
[1756212095809,0.01764277,110760.0,110750.0,1.35036604]
[1756212096022,0.01764277,110760.0,110750.0,0.76424867]
[1756212096237,0.01961277,110760.0,110750.0,0.34652892]
[1756212096487,0.01764277,110760.0,110750.0,0.56024892]
[1756212096670,0.01764277,110760.0,110750.0,0.56232892]
[1756212096887,0.01764277,110760.0,110750.0,1.20482825]
[1756212097094,0.01764277,110760.0,110750.0,0.6391599]
[1756212097311,0.01764277,110760.0,110750.0,1.22527727]
[1756212097528,0.01764277,110760.0,110750.0,1.21727727]
[1756212097818,0.01764277,110760.0,110750.0,0.6311599]
[1756212098058,0.01764277,110760.0,110750.0,1.19982825]
[1756212098283,0.01764277,110760.0,110750.0,1.20582825]
[1756212098757,0.01764277,110760.0,110750.0,0.61971088]
[1756212098971,0.01764277,110760.0,110750.0,0.60423757]
[1756212099652,0.01764277,110760.0,110750.0,0.60215757]
[1756212099924,0.20018337,110760.0,110750.0,0.16694202]
[1756212100208,0.78954074,110760.0,110750.0,0.38026202]
[1756212100542,0.20342337,110760.0,110750.0,0.56084892]
[1756212100781,0.78954074,110760.0,110750.0,0.56084892]
[1756212101003,0.20342337,110760.0,110750.0,0.37826202]
[1756212101222,0.20342337,110760.0,110750.0,0.55884892]
[1756212101655,0.20342337,110760.0,110750.0,0.37426202]
[1756212101868,0.78954074,110760.0,110750.0,0.55484892]
[1756212102272,0.20342337,110760.0,110750.0,0.55684892]
[1756212102485,0.20342337,110760.0,110750.0,0.37626202]
[1756212102703,0.78954074,110760.0,110750.0,0.55684892]
[1756212103105,0.78954074,110760.0,110750.0,0.55893892]
[1756212103106,0.01764277,110760.0,110750.0,0.55893892]
[1756212103318,0.01963277,110760.0,110750.0,0.55684892]
[1756212103937,0.20505983,110760.0,110750.0,0.55684892]
[1756212104162,0.01764277,110760.0,110750.0,0.55893892]
[1756212104376,0.01764277,110760.0,110750.0,0.56200892]
[1756212104587,0.01764277,110760.0,110750.0,1.22142328]
[1756212105010,0.01764277,110760.0,110750.0,0.63530591]
[1756212105214,0.01764277,110760.0,110750.0,1.2565143]
[1756212105648,0.01764277,110760.0,110750.0,0.67039693]
[1756212105838,0.01764277,110760.0,110750.0,1.2545143]
[1756212106248,0.01764277,110760.0,110750.0,0.66799693]
[1756212106457,0.01764277,110760.0,110750.0,0.66999693]
[1756212106881,0.01764277,110760.0,110750.0,1.2541143]
[1756212107519,0.01764277,110760.0,110750.0,1.2611143]
[1756212107728,0.01764277,110760.0,110750.0,0.67899693]
[1756212107962,0.01764277,110760.0,110750.0,1.2651143]
[1756212108196,0.01764277,110760.0,110750.0,1.19181731]
[1756212108436,0.01764277,110760.0,110750.0,1.00569994]
[1756212108654,0.01764277,110760.0,110750.0,1.59181731]
[1756212109140,0.01764277,110760.0,110750.0,1.00569994]
[1756212109380,0.01764277,110760.0,110750.0,1.59181731]
[1756212109823,0.00316,110800.0,110790.0,0.1805217]
[1756212110026,0.77361196,110800.0,110790.0,0.48362372]
[1756212110245,0.18579813,110800.0,110790.0,0.30318202]
[1756212110453,0.18579813,110800.0,110790.0,0.48370372]
[1756212111150,0.7719155,110800.0,110790.0,0.48370372]
[1756212111384,0.7719155,110800.0,110790.0,0.48470372]
[1756212112309,0.18579813,110800.0,110790.0,0.48470372]
[1756212112977,0.00529272,110800.0,110790.0,0.48470372]
[1756212113208,0.00698918,110800.0,110790.0,0.48470372]
[1756212113852,0.00698918,110800.0,110790.0,0.52478818]
[1756212114073,0.00529272,110800.0,110790.0,0.52478818]
[1756212114289,0.00014272,110800.0,110790.0,0.52687818]
[1756212115155,0.00213272,110800.0,110790.0,0.31515818]
[1756212115371,0.00213272,110800.0,110790.0,0.52587818]
[1756212116902,0.00213272,110800.0,110790.0,0.52547818]
[1756212117126,0.00014272,110800.0,110790.0,0.52547818]
[1756212117337,0.00213272,110800.0,110790.0,0.52547818]
[1756212117546,0.00529272,110800.0,110790.0,0.31306818]
[1756212117769,0.00698918,110800.0,110790.0,0.52398818]
[1756212118508,0.00698918,110800.0,110790.0,0.52418818]
[1756212120563,0.00698918,110800.0,110790.0,0.31310818]
[1756212120792,0.02640378,110800.0,110790.0,0.52362818]
[1756212121260,0.20690919,110800.0,110790.0,0.31310818]
[1756212121490,0.82401488,110800.0,110790.0,0.04112446]
[1756212121711,0.82401488,110800.0,110790.0,0.25172446]
[1756212122151,0.82401488,110800.0,110790.0,0.31310818]
[1756212122152,0.23789751,110800.0,110790.0,0.31310818]
[1756212122374,0.23789751,110800.0,110790.0,0.52346818]
[1756212122600,0.0573921,110800.0,110790.0,0.52346818]
[1756212122817,0.23115868,110800.0,110790.0,0.52346818]
[1756212123042,0.04895681,110800.0,110790.0,0.31310818]
[1756212123301,0.81727605,110800.0,110790.0,0.52354818]
[1756212123475,0.81557959,110800.0,110790.0,0.52354818]
[1756212123694,0.22946222,110800.0,110790.0,0.52354818]
[1756212124125,0.01955732,110800.0,110790.0,0.52334818]
[1756212124365,0.01955732,110800.0,110790.0,0.59664517]
[1756212124604,0.00014272,110800.0,110790.0,0.59664517]
[1756212125080,0.00014272,110800.0,110790.0,1.58276254]
[1756212125539,0.0069392,110820.0,110810.0,0.18048912]
[1756212125759,0.0069392,110820.0,110810.0,0.92958301]
[1756212126033,0.0069392,110820.0,110810.0,0.34120953]
[1756212126248,0.0069392,110820.0,110810.0,0.55492953]
[1756212126473,0.0069392,110820.0,110810.0,0.55484953]
[1756212126705,0.0069392,110820.0,110810.0,1.1409269]
[1756212126958,0.0069392,110820.0,110810.0,0.34120953]
[1756212127218,0.7735294,110820.0,110810.0,0.09146202]
[1756212127489,0.18048912,110810.0,110800.0,0.240605]
[1756212127764,0.0069392,110820.0,110810.0,0.18048912]
[1756212128027,0.0069392,110820.0,110810.0,0.27420725]
[1756212128293,0.0069392,110820.0,110810.0,0.85806851]
[1756212128729,0.0069392,110820.0,110810.0,1.07502851]
[1756212128982,1e-08,110820.0,110810.0,1.59215351]
[1756212129221,1e-08,110820.0,110810.0,1.99215351]
[1756212129441,1e-08,110820.0,110810.0,1.40603614]
[1756212129670,1e-08,110820.0,110810.0,1.47167614]
[1756212129911,1e-08,110820.0,110810.0,1.62167614]
[1756212130339,1e-08,110820.0,110810.0,2.20779351]
[1756212130562,1e-08,110820.0,110810.0,1.62167614]
[1756212130783,1e-08,110820.0,110810.0,1.25603614]
[1756212131002,1e-08,110820.0,110810.0,1.40603614]
[1756212131243,1e-08,110820.0,110810.0,1.26503614]
[1756212131458,1e-08,110820.0,110810.0,0.92503614]
[1756212131704,1e-08,110820.0,110810.0,0.71375114]
[1756212132158,1e-08,110820.0,110810.0,1.29986851]
[1756212132400,0.00028678,110850.0,110840.0,0.76655764]
[1756212132621,0.00028678,110850.0,110840.0,0.35030229]
[1756212132841,0.00028678,110850.0,110840.0,1.15321966]
[1756212133068,0.00028678,110850.0,110840.0,1.18033666]
[1756212133327,0.00028678,110850.0,110840.0,0.76166831]
[1756212133538,0.00028678,110850.0,110840.0,0.49204706]
[1756212133786,0.00028678,110850.0,110840.0,1.29476443]
[1756212134217,0.00028678,110850.0,110840.0,1.22114744]
[1756212134438,0.00028678,110850.0,110840.0,1.82571383]
[1756212134652,0.00028678,110850.0,110840.0,1.25216461]
[1756212135103,0.00028678,110850.0,110840.0,0.66604724]
[1756212135340,5.25745801,110860.0,110850.0,0.18042399]
[1756212135562,5.25745801,110860.0,110850.0,0.86025867]
[1756212135782,4.83045312,110860.0,110850.0,2.25156977]
[1756212136011,4.4885692,110860.0,110850.0,2.41944207]
[1756212136232,3.79595463,110860.0,110850.0,2.47364786]
[1756212136462,3.7643294,110860.0,110850.0,2.67364786]
[1756212136687,3.63386552,110860.0,110850.0,2.89008786]
[1756212136909,3.44116577,110860.0,110850.0,2.68996786]
[1756212137135,2.74822665,110860.0,110850.0,2.69846786]
[1756212137379,1.93656708,110860.0,110850.0,2.82746786]
[1756212137618,0.0547533,110870.0,110860.0,1.06285674]
[1756212137837,0.08312107,110960.0,110950.0,0.18026137]
[1756212138051,0.08312107,110960.0,110950.0,0.30810202]
[1756212138274,0.08312107,110960.0,110950.0,0.48836339]
[1756212138497,0.08312107,110960.0,110950.0,1.14224506]
[1756212138784,0.08312107,110960.0,110950.0,0.89612769]
[1756212139015,0.08312107,110960.0,110950.0,0.56847668]
[1756212139240,0.08359759,110960.0,110950.0,0.90847668]
[1756212139471,1e-08,110960.0,110950.0,2.91633005]
[1756212139690,0.01,110980.0,110970.0,0.52022889]
[1756212139905,0.01,110980.0,110970.0,1.23408696]
[1756212140125,0.0101429,110980.0,110970.0,0.64796959]
[1756212140360,0.0101429,110980.0,110970.0,1.26116996]
[1756212140584,0.0101429,110980.0,110970.0,0.33505259]
[1756212140812,0.0101429,110980.0,110970.0,0.12754502]
[1756212141036,0.76633002,110980.0,110970.0,0.09146202]
[1756212141319,0.18024513,110960.0,110950.0,0.02709]
[1756212141541,0.18027762,110940.0,110930.0,0.221]
[1756212141758,0.99694411,110940.0,110910.0,0.027098]
[1756212141983,0.18031013,110920.0,110910.0,0.31266202]
[1756212142206,0.18031013,110920.0,110910.0,0.09146202]
[1756212142207,0.18200659,110920.0,110910.0,0.09146202]
[1756212142430,0.00169646,110920.0,110910.0,0.3450854]
[1756212142663,0.18029412,110930.0,110910.0,0.38663901]
[1756212142880,0.18929519,110940.0,110920.0,0.09146202]
[1756212143106,0.18199033,110930.0,110920.0,0.09146202]
[1756212143325,0.00169646,110930.0,110920.0,0.09146202]
[1756212143548,0.18026143,110950.0,110920.0,0.28078765]
[1756212143809,0.18023,110970.0,110940.0,0.18027762]
[1756212144008,0.00169646,110970.0,110950.0,0.49645559]
[1756212144241,0.18192679,110970.0,110950.0,0.31394202]
[1756212144451,0.18192642,110970.0,110950.0,0.31394202]
[1756212144666,0.18024513,110960.0,110950.0,0.31394202]
[1756212145376,1.67848727,110960.0,110950.0,0.0001429]
[1756212145591,0.98828368,110960.0,110950.0,0.0001429]
[1756212145809,1.79423983,110960.0,110950.0,0.0001429]
[1756212146033,0.53774289,110930.0,110920.0,0.0006]
[1756212146252,0.18038043,110880.0,110860.0,0.07329699]
[1756212146498,0.18040772,110860.0,110850.0,0.250513]
[1756212146713,0.98806033,110860.0,110840.0,0.08229699]
[1756212146931,0.00169646,110850.0,110840.0,0.17375901]
[1756212147174,0.18039144,110870.0,110840.0,0.3564547]
[1756212147424,0.01411501,110900.0,110880.0,0.18037333]
[1756212147669,0.00014229,110870.0,110840.0,0.07329699]
[1756212147918,0.80609844,110870.0,110850.0,0.09146202]
[1756212148184,0.00014229,110870.0,110850.0,0.49620597]
[1756212148416,0.00014229,110870.0,110860.0,1.57173797]
[1756212148636,0.00014229,110870.0,110860.0,0.69022974]
[1756212148924,0.18936411,110920.0,110890.0,0.18035891]
[1756212149231,0.80595615,110920.0,110900.0,0.27180447]
[1756212149483,0.80765261,110910.0,110900.0,0.27180467]
[1756212149733,0.18029504,110930.0,110910.0,0.18032434]
[1756212149984,0.18032639,110910.0,110890.0,0.41471871]
[1756212150298,0.98799526,110900.0,110880.0,0.22556]
[1756212150524,0.98799526,110900.0,110860.0,0.18040761]
[1756212150525,0.19107394,110890.0,110860.0,0.18040761]
[1756212150749,0.99531593,110900.0,110880.0,0.00047652]
[1756212150976,0.1803428,110900.0,110880.0,0.27399839]
[1756212151209,0.98631506,110890.0,110880.0,0.00047652]
[1756212151438,6.07777708,110890.0,110880.0,0.00047652]
[1756212151680,1.07777708,110890.0,110880.0,0.00047652]
[1756212151924,6.82788309,110890.0,110880.0,1e-08]
[1756212152144,0.18044098,110840.0,110820.0,0.07429699]
[1756212152369,0.00169646,110830.0,110820.0,0.16575901]
[1756212152593,0.00169646,110830.0,110820.0,0.34623184]
[1756212152840,0.18213907,110840.0,110820.0,0.16575901]
[1756212153071,0.18213907,110840.0,110820.0,0.001]
[1756212153072,0.98810916,110830.0,110820.0,0.001]
[1756212153301,0.18044261,110840.0,110820.0,0.001]
[1756212153523,0.00169646,110830.0,110820.0,0.001]
[1756212153757,0.18091786,110840.0,110830.0,0.18045655]
[1756212153758,0.00047525,110840.0,110830.0,0.18045655]
[1756212153978,0.00047525,110840.0,110830.0,1.30953042]
[1756212154261,0.00047525,110840.0,110830.0,0.89146604]
[1756212154479,0.00047525,110840.0,110830.0,1.69742219]
[1756212154700,0.00047525,110840.0,110830.0,1.29146604]
[1756212154919,0.00047525,110840.0,110830.0,0.89174604]
[1756212155139,0.00047525,110840.0,110830.0,1.69770219]
[1756212155373,0.01202589,110910.0,110890.0,0.18035132]
[1756212155618,0.26266032,110930.0,110900.0,0.09146202]
[1756212155834,0.98628254,110910.0,110880.0,0.18034499]
[1756212156045,0.00169646,110900.0,110890.0,0.09146202]
[1756212156259,0.18203911,110900.0,110890.0,0.09146202]
[1756212156474,0.98799526,110900.0,110870.0,0.42852729]
[1756212156728,0.18205563,110890.0,110880.0,0.09146202]
[1756212156950,0.18035917,110890.0,110880.0,0.09146202]
[1756212157176,0.41964528,110910.0,110890.0,0.18035705]
[1756212157386,0.18034265,110900.0,110880.0,0.2718372]
[1756212157603,0.18203911,110900.0,110880.0,0.2718372]
[1756212157809,0.18035891,110890.0,110880.0,0.09146202]
[1756212158059,0.9862988,110900.0,110880.0,0.2718372]
[1756212158281,0.18034346,110900.0,110880.0,0.2718372]
[1756212158493,0.18203992,110900.0,110880.0,0.2718372]
[1756212158705,0.18203911,110900.0,110880.0,0.2718372]
[1756212159048,0.00169646,110900.0,110890.0,0.18035891]
[1756212159260,0.98799526,110900.0,110880.0,0.2718372]
[1756212159468,0.00169646,110890.0,110880.0,0.2718372]
[1756212159703,0.98801152,110890.0,110870.0,0.20750186]
[1756212159919,0.00169646,110880.0,110870.0,0.27185088]
[1756212160122,0.18207164,110880.0,110870.0,0.09146202]
[1756212160342,0.18207164,110880.0,110860.0,0.027115]
[1756212160562,0.41195164,110880.0,110860.0,0.2718694]
[1756212160958,0.00169646,110870.0,110860.0,0.2718694]
[1756212161671,0.00169646,110870.0,110860.0,0.09146202]
[1756212161893,0.00169646,110870.0,110860.0,0.27186974]
[1756212162121,0.2302,110890.0,110880.0,0.18037518]
[1756212162342,0.41056056,110890.0,110870.0,0.18039033]
[1756212162546,0.2302,110890.0,110880.0,0.18037518]
[1756212162823,0.41055891,110890.0,110870.0,0.27185235]
[1756212163071,1.21651506,110890.0,110870.0,0.27185235]
[1756212163318,2.08285793,110900.0,110880.0,0.18037518]
[1756212163515,1.018182,110900.0,110890.0,0.18035891]
[1756212163778,1.018182,110900.0,110890.0,0.27182093]
[1756212165132,1.018182,110900.0,110890.0,1.49107407]
[1756212165355,1.018182,110900.0,110890.0,1.53108174]
[1756212166231,1.018182,110900.0,110890.0,1.0518286]
[1756212166448,1.018182,110900.0,110890.0,1.85778475]
[1756212166674,1.018182,110900.0,110890.0,1.0518286]
[1756212166893,1.018182,110900.0,110890.0,1.2825886]
[1756212167126,1.018182,110900.0,110890.0,1.85778475]
[1756212167343,1.018182,110900.0,110890.0,2.09226475]
[1756212167564,1.018182,110900.0,110890.0,1.0558286]
[1756212167783,1.018182,110900.0,110890.0,1.2864286]
[1756212168237,1.018182,110900.0,110890.0,2.09238475]
[1756212168885,1.018182,110900.0,110890.0,2.09262475]
[1756212169314,1.018182,110900.0,110890.0,1.2866686]
[1756212169558,1.018182,110900.0,110890.0,0.7158286]
[1756212169786,1.018182,110900.0,110890.0,0.9466686]
[1756212170038,1.018182,110900.0,110890.0,1.75262475]
[1756212170711,1.018182,110900.0,110890.0,1.77973075]
[1756212170932,1.018182,110900.0,110890.0,0.7429346]
[1756212171154,1.018182,110900.0,110890.0,0.9736146]
[1756212172255,1.018182,110900.0,110890.0,0.16257569]
[1756212172472,1.42960465,110900.0,110890.0,0.09546202]
[1756212173113,2.2355608,110900.0,110890.0,0.004]
[1756212173772,0.18036332,110890.0,110870.0,0.488319]
[1756212173987,0.18036332,110890.0,110870.0,0.11857602]
[1756212173988,0.18205978,110890.0,110870.0,0.11857602]
[1756212174201,0.18207164,110880.0,110870.0,0.09146202]
[1756212174421,0.18036332,110890.0,110870.0,0.09146202]
[1756212174651,0.41321978,110890.0,110870.0,0.27185346]
[1756212174871,0.18207164,110880.0,110870.0,0.09146202]
[1756212175099,0.41152332,110890.0,110870.0,0.27185346]
[1756212175306,0.00169646,110880.0,110870.0,0.27185346]
[1756212176231,0.23128,110890.0,110880.0,0.18037022]
[1756212176441,0.23128,110890.0,110880.0,0.27408692]
[1756212176656,1.19852465,110900.0,110880.0,0.27183224]
[1756212176868,1.19852465,110900.0,110890.0,0.27182093]
[1756212176869,1.249382,110900.0,110890.0,0.27182093]
[1756212177373,1.42972465,110900.0,110890.0,0.09146202]
[1756212177585,1.42972465,110900.0,110890.0,0.27182093]
[1756212177804,1.42988465,110900.0,110890.0,0.27182093]
[1756212178017,1.249542,110900.0,110890.0,0.27182093]
[1756212178246,1.42988465,110900.0,110870.0,0.46122957]
[1756212178481,0.18205537,110890.0,110880.0,0.09146202]
[1756212178701,0.98631506,110890.0,110860.0,0.027117]
[1756212178919,0.18937685,110890.0,110870.0,0.09146202]
[1756212179120,0.18037518,110880.0,110870.0,0.09146202]
[1756212179536,0.18040772,110860.0,110850.0,0.009]
[1756212179784,0.42101101,110870.0,110850.0,0.11905727]
[1756212180056,0.18040772,110860.0,110850.0,0.12131256]
[1756212180275,0.18040772,110860.0,110850.0,0.11905727]
[1756212180515,0.98636387,110860.0,110850.0,0.00047525]
[1756212180741,1.04560379,110860.0,110850.0,0.00047525]
[1756212180968,0.9864127,110830.0,110820.0,0.028124]
[1756212181183,1.2190527,110830.0,110820.0,0.02860049]
[1756212181630,1.2190527,110830.0,110820.0,0.00147649]
[1756212181855,1.31049799,110830.0,110820.0,0.00147649]
[1756212182289,0.50454184,110830.0,110820.0,0.00147649]
[1756212182507,1.41940903,110830.0,110820.0,0.00147649]
[1756212182776,0.18050541,110800.0,110790.0,4e-05]
[1756212182996,0.41398541,110800.0,110790.0,0.00051696]
[1756212183224,0.41595541,110800.0,110790.0,0.00051696]
[1756212183415,1.22495156,110800.0,110790.0,0.00051696]
[1756212183699,0.41899541,110800.0,110790.0,0.00051696]
[1756212184158,0.41899541,110800.0,110760.0,0.027134]
[1756212184159,0.1805543,110770.0,110760.0,0.027134]
[1756212184375,0.4193243,110770.0,110760.0,0.02761114]
[1756212184600,0.4193243,110770.0,110760.0,0.00047714]
[1756212185086,1.22536045,110770.0,110760.0,0.00047714]
[1756212185281,1.22556045,110770.0,110760.0,0.00047714]
[1756212185548,1.29496045,110770.0,110760.0,0.00047714]
[1756212185786,0.4890043,110770.0,110760.0,0.00047714]
[1756212186008,1.29496045,110770.0,110760.0,0.00047714]
[1756212186226,0.2519243,110770.0,110760.0,0.00047714]
[1756212186440,0.23472,110770.0,110760.0,0.27250976]
[1756212186668,0.2348,110790.0,110780.0,0.180538]
[1756212186892,0.18054537,110780.0,110760.0,0.18104658]